[Event "GER-ch Youth U10 2019"]
[Site "Willingen"]
[Date "2019.06.14"]
[Round "9.9"]
[White "Klaska, Philipp Leon"]
[Black "Chugunov, Ivan"]
[Result "1-0"]
[ECO "B17"]
[WhiteElo "1444"]
[BlackElo "1310"]
[Annotator "NA"]
[PlyCount "88"]
[EventDate "2019.06.07"]
[EventType "swiss"]
[EventRounds "11"]
[EventCountry "GER"]
[SourceTitle "playchess.com"]
[Source "ChessBase"]
[SourceQuality "1"]
[TimeControl "40/4500+30:900+30"]

1. e4 {[%emt 0:00:00]} c6 {[%emt 0:00:00]} 2. d4 {[%emt 0:00:00]} d5 {[%emt 0:00:00]} 3. Nd2 {[%emt 0:00:00]} dxe4 {[%emt 0:00:00]} 4. Nxe4 {[%emt 0:00:00]} Nd7 {[%emt 0:00:00]} 5. c3 {[%emt 0:00:47]} Ngf6 {[%emt 0:00:09]} 6. Nxf6+ {[%emt 0:00:35]} Nxf6 {[%emt 0:00:11]} 7. Bc4 {[%emt 0:00:18]} Bf5 {[%emt 0:00:24]} 8. Qb3 {[%emt 0:00:24]} e6 {[%emt 0:04:47]} 9. Qxb7 {[%emt 0:01:37]} Qc8 {[%emt 0:03:29]} 10. Qxc8+ {[%emt 0:00:52]} Rxc8 {[%emt 0:00:12]} 11. Ne2 {[%emt 0:03:55]} c5 {[%emt 0:00:19]} 12. Bb5+ {[%emt 0:03:34]} Kd8 {[%emt 0:00:24]} 13. O-O {[%emt 0:05:30]} cxd4 {[%emt 0:02:16]} 14. Nxd4 {[%emt 0:03:05]} Be4 {[%emt 0:00:16]} 15. Rd1 {[%emt 0:05:47]} Ke7 {[%emt 0:02:59]} 16. f3 {[%emt 0:05:39]} Bb7 {[%emt 0:00:41]} 17. Be3 {[%emt 0:07:41]} Nd5 {[%emt 0:01:12]} 18. Bf2 {[%emt 0:03:48]} g6 {[%emt 0:00:39]} 19. Nb3 {[%emt 0:03:42]} Bh6 {[%emt 0:01:41]} 20. Bxa7 {[%emt 0:07:24]} Rhd8 {[%emt 0:01:27]} 21. Bf2 {[%emt 0:04:34]} Ne3 {[%emt 0:00:41]} 22. Bxe3 {[%emt 0:04:03]} Bxe3+ {[%emt 0:01:00]} 23. Kf1 {[%emt 0:01:28]} Bf4 {[%emt 0:01:33]} 24. h3 {[%emt 0:01:18]} Kf6 {[%emt 0:02:38]} 25. Ke2 {[%emt 0:03:01]} Kg5 {[%emt 0:01:10]} 26. Rxd8 {[%emt 0:01:50]} Rxd8 {[%emt 0:00:27]} 27. Rd1 {[%emt 0:02:39]} Rxd1 {[%emt 0:03:56]} 28. Kxd1 {[%emt 0:00:01]} Kh4 {[%emt 0:00:40]} 29. Ke2 {[%emt 0:00:58]} Kg3 {[%emt 0:00:10]} 30. Kf1 {[%emt 0:00:16]} e5 {[%emt 0:01:13]} 31. Nc5 {[%emt 0:00:37]} Ba8 {[%emt 0:00:33]} 32. Ne4+ {[%emt 0:00:28]} Bxe4 {[%emt 0:01:08]} 33. fxe4 {[%emt 0:00:02]} f5 {[%emt 0:00:14]} 34. Bd3 {[%emt 0:02:37]} Bc1 {[%emt 0:00:43]} 35. exf5 {[%emt 0:01:28]} Bxb2 {[%emt 0:00:12]} 36. fxg6 {[%emt 0:01:11]} hxg6 {[%emt 0:00:13]} 37. Bxg6 {[%emt 0:00:51]} Bxc3 {[%emt 0:00:09]} 38. a4 {[%emt 0:01:50]} Ba5 {[%emt 0:00:14]} 39. Ke2 {[%emt 0:01:18]} Bd8 {[%emt 0:01:14]} 40. Be4 {[%emt 0:00:55]} Kf4 {[%emt 0:02:18]} 41. Kd3 {[%emt 0:15:37]} Ba5 {[%emt 0:16:42]} 42. Bf3 {[%emt 0:02:12]} Bd8 {[%emt 0:01:09]} 43. Kc4 {[%emt 0:04:28]} e4 {[%emt 0:00:21]} 44. Bxe4 {[%emt 0:00:20]} Kxe4 {[%emt 0:00:04] normal} 1-0

[Event "GER-ch Youth U10 2019"]
[Site "Willingen"]
[Date "2019.06.14"]
[Round "10.1"]
[White "Sauer, Tim"]
[Black "Helms, Finn"]
[Result "1-0"]
[ECO "A16"]
[WhiteElo "1553"]
[BlackElo "1773"]
[Annotator "NA"]
[PlyCount "80"]
[EventDate "2019.06.07"]
[EventType "swiss"]
[EventRounds "11"]
[EventCountry "GER"]
[SourceTitle "playchess.com"]
[Source "ChessBase"]
[SourceQuality "1"]
[TimeControl "40/4500+30:900+30"]

1. c4 {[%emt 0:00:00]} Nf6 {[%emt 0:00:00]} 2. Nc3 {[%emt 0:00:00]} g6 {[%emt 0:00:00]} 3. g3 {[%emt 0:00:00]} Bg7 {[%emt 0:00:00]} 4. Bg2 {[%emt 0:00:00]} d6 {[%emt 0:00:00]} 5. e3 {[%emt 0:00:00]} O-O {[%emt 0:00:05]} 6. Nge2 {[%emt 0:00:02]} e5 {[%emt 0:00:13]} 7. d4 {[%emt 0:00:25]} Nbd7 {[%emt 0:00:22]} 8. O-O {[%emt 0:00:08]} Ne8 {[%emt 0:00:23]} 9. d5 {[%emt 0:04:28]} f5 {[%emt 0:00:25]} 10. e4 {[%emt 0:00:43]} Ndf6 {[%emt 0:00:41]} 11. f4 {[%emt 0:07:19]} Nxe4 {[%emt 0:01:41]} 12. Nxe4 {[%emt 0:00:29]} fxe4 {[%emt 0:00:02]} 13. Bxe4 {[%emt 0:01:22]} Bf5 {[%emt 0:00:25]} 14. Nc3 {[%emt 0:02:31]} Bxe4 {[%emt 0:01:49]} 15. Nxe4 {[%emt 0:00:15]} Nf6 {[%emt 0:00:21]} 16. Ng5 {[%emt 0:00:36]} Qd7 {[%emt 0:02:38]} 17. Ne6 {[%emt 0:00:54]} Rf7 {[%emt 0:01:57]} 18. fxe5 {[%emt 0:10:23]} dxe5 {[%emt 0:00:08]} 19. Re1 {[%emt 0:05:29]} Qd6 {[%emt 0:00:47]} 20. Qe2 {[%emt 0:07:26]} Nd7 {[%emt 0:07:02]} 21. Nxg7 {[%emt 0:05:35]} Kxg7 {[%emt 0:00:35]} 22. b3 {[%emt 0:01:33]} Kg8 {[%emt 0:00:19]} 23. Bb2 {[%emt 0:00:58]} Raf8 {[%emt 0:00:51]} 24. Rf1 {[%emt 0:10:31]} Qc5+ {[%emt 0:00:49]} 25. Kg2 {[%emt 0:02:38]} c6 {[%emt 0:04:00]} 26. Rxf7 {[%emt 0:03:29]} Rxf7 {[%emt 0:00:14]} 27. dxc6 {[%emt 0:00:27]} Qxc6+ {[%emt 0:00:11]} 28. Kg1 {[%emt 0:00:19]} Qc5+ {[%emt 0:00:42]} 29. Kg2 {[%emt 0:00:11]} e4 {[%emt 0:00:49]} 30. Rd1 {[%emt 0:03:48]} Qc6 {[%emt 0:03:42]} 31. Qe3 {[%emt 0:12:17]} Rf3 {[%emt 0:02:42]} 32. Qd4 {[%emt 0:00:13]} Nf6 {[%emt 0:00:45]} 33. Qd8+ {[%emt 0:00:46]} Kg7 {[%emt 0:14:13]} 34. Bxf6+ {[%emt 0:04:10]} Rxf6 {[%emt 0:00:37]} 35. Qd7+ {[%emt 0:00:16]} Qxd7 {[%emt 0:00:28]} 36. Rxd7+ {[%emt 0:00:05]} Rf7 {[%emt 0:00:04]} 37. Rxf7+ {[%emt 0:00:55]} Kxf7 {[%emt 0:00:04]} 38. Kf2 {[%emt 0:00:08]} Ke6 {[%emt 0:00:16]} 39. Ke3 {[%emt 0:00:08]} Ke5 {[%emt 0:02:35]} 40. g4 {[%emt 0:01:25]} g5 {[%emt 0:00:58] normal} 1-0

[Event "GER-ch Youth U10 2019"]
[Site "Willingen"]
[Date "2019.06.14"]
[Round "10.2"]
[White "Torosyan, Bagrat"]
[Black "Besou, Hussain"]
[Result "1-0"]
[ECO "B80"]
[WhiteElo "1444"]
[BlackElo "1785"]
[Annotator "NA"]
[PlyCount "92"]
[EventDate "2019.06.07"]
[EventType "swiss"]
[EventRounds "11"]
[EventCountry "GER"]
[SourceTitle "playchess.com"]
[Source "ChessBase"]
[SourceQuality "1"]
[TimeControl "40/4500+30:900+30"]

1. e4 {[%emt 0:00:00]} c5 {[%emt 0:00:00]} 2. Nf3 {[%emt 0:00:00]} e6 {[%emt 0:00:00]} 3. d4 {[%emt 0:00:00]} cxd4 {[%emt 0:00:00]} 4. Nxd4 {[%emt 0:00:00]} Nf6 {[%emt 0:00:00]} 5. Nc3 {[%emt 0:00:00]} d6 {[%emt 0:00:08]} 6. Be3 {[%emt 0:00:36]} a6 {[%emt 0:00:15]} 7. a4 {[%emt 0:00:34]} b6 {[%emt 0:00:39]} 8. Be2 {[%emt 0:00:56]} Bb7 {[%emt 0:00:33]} 9. f3 {[%emt 0:00:22]} Be7 {[%emt 0:00:41]} 10. Qd2 {[%emt 0:01:24]} Nbd7 {[%emt 0:00:51]} 11. O-O {[%emt 0:01:13]} O-O {[%emt 0:00:32]} 12. Rad1 {[%emt 0:03:14]} Rc8 {[%emt 0:01:07]} 13. Bd3 {[%emt 0:02:43]} Qc7 {[%emt 0:02:41]} 14. Nde2 {[%emt 0:02:27]} Ne5 {[%emt 0:01:57]} 15. h3 {[%emt 0:02:12]} Nfd7 {[%emt 0:02:17]} 16. f4 {[%emt 0:00:18]} Nc4 {[%emt 0:00:08]} 17. Bxc4 {[%emt 0:00:10]} Qxc4 {[%emt 0:00:09]} 18. Qd3 {[%emt 0:04:30]} Qc7 {[%emt 0:01:08]} 19. Rc1 {[%emt 0:05:49]} Nc5 {[%emt 0:01:39]} 20. Bxc5 {[%emt 0:03:00]} Qxc5+ {[%emt 0:01:04]} 21. Kh1 {[%emt 0:00:53]} f5 {[%emt 0:01:51]} 22. exf5 {[%emt 0:00:41]} exf5 {[%emt 0:00:47]} 23. Nd4 {[%emt 0:02:05]} Rf6 {[%emt 0:00:50]} 24. Rce1 {[%emt 0:25:45]} Bf8 {[%emt 0:00:46]} 25. Ne6 {[%emt 0:02:00]} Qc6 {[%emt 0:00:52]} 26. Qd2 {[%emt 0:01:30]} Rg6 {[%emt 0:01:14]} 27. Rf2 {[%emt 0:01:04]} Re8 {[%emt 0:04:53]} 28. Nd4 {[%emt 0:03:41]} Rxe1+ {[%emt 0:00:10]} 29. Qxe1 {[%emt 0:00:05]} Qd7 {[%emt 0:00:46]} 30. Re2 {[%emt 0:04:03]} Ba8 {[%emt 0:01:57]} 31. Qd2 {[%emt 0:07:50]} Rh6 {[%emt 0:02:00]} 32. Kh2 {[%emt 0:00:30]} Qf7 {[%emt 0:00:56]} 33. Qd3 {[%emt 0:01:52]} Rf6 {[%emt 0:01:04]} 34. Nf3 {[%emt 0:00:58]} Qh5 {[%emt 0:02:51]} 35. Nd2 {[%emt 0:01:32]} Rh6 {[%emt 0:05:35]} 36. Qc4+ {[%emt 0:04:51]} Qf7 {[%emt 0:00:59]} 37. Qxa6 Bb7 {[%emt 0:00:14]} 38. Qc4 {[%emt 0:02:29]} d5 {[%emt 0:00:07]} 39. Qd3 {[%emt 0:00:07]} Bd6 {[%emt 0:00:23]} 40. Qe3 {[%emt 0:00:59]} Bc6 {[%emt 0:00:36]} 41. Nf3 {[%emt 0:15:31]} Qc7 {[%emt 0:16:39]} 42. Ne5 {[%emt 0:00:14]} Re6 {[%emt 0:00:27]} 43. Qg3 {[%emt 0:01:20]} d4 {[%emt 0:00:44]} 44. Nb5 {[%emt 0:01:03]} Bxb5 {[%emt 0:00:09]} 45. axb5 {[%emt 0:00:07]} h6 {[%emt 0:03:00]} 46. Qb3 {[%emt 0:00:25]} Qc8 {normal} 1-0

[Event "GER-ch Youth U10 2019"]
[Site "Willingen"]
[Date "2019.06.14"]
[Round "10.4"]
[White "Ermitsch, Magnus"]
[Black "Sommer, Justus"]
[Result "1-0"]
[ECO "C77"]
[WhiteElo "1843"]
[BlackElo "1684"]
[Annotator "NA"]
[PlyCount "47"]
[EventDate "2019.06.07"]
[EventType "swiss"]
[EventRounds "11"]
[EventCountry "GER"]
[SourceTitle "playchess.com"]
[Source "ChessBase"]
[SourceQuality "1"]
[TimeControl "40/4500+30:900+30"]

1. e4 {[%emt 0:00:00]} e5 {[%emt 0:00:16]} 2. Nf3 {[%emt 0:00:37]} Nc6 {[%emt 0:00:20]} 3. Bb5 {[%emt 0:00:47]} a6 {[%emt 0:00:15]} 4. Ba4 {[%emt 0:00:50]} Nf6 {[%emt 0:00:22]} 5. d3 {[%emt 0:00:59]} b5 {[%emt 0:00:28]} 6. Bb3 {[%emt 0:00:49]} Be7 {[%emt 0:00:57]} 7. O-O {[%emt 0:01:07]} O-O {[%emt 0:00:56]} 8. Re1 {[%emt 0:01:22]} h6 {[%emt 0:01:10]} 9. Nbd2 {[%emt 0:01:14]} Re8 {[%emt 0:00:16]} 10. Nf1 {[%emt 0:01:17]} Bf8 {[%emt 0:00:18]} 11. c3 {[%emt 0:04:24]} Qe7 {[%emt 0:01:57]} 12. Ng3 {[%emt 0:01:44]} g6 {[%emt 0:00:08]} 13. h3 {[%emt 0:06:26]} Bb7 {[%emt 0:02:12]} 14. Nh2 {[%emt 0:01:09]} Bg7 {[%emt 0:02:14]} 15. Ng4 {[%emt 0:07:28]} Kh7 {[%emt 0:02:37]} 16. Qf3 {[%emt 0:06:28]} Nxg4 {[%emt 0:06:53]} 17. Qxg4 {[%emt 0:02:25]} Na5 {[%emt 0:04:56]} 18. Bc2 {[%emt 0:05:07]} Rad8 {[%emt 0:05:19]} 19. b4 {[%emt 0:00:28]} Nc6 {[%emt 0:00:29]} 20. Bb3 {[%emt 0:01:03]} d6 {[%emt 0:06:03]} 21. Re3 {[%emt 0:08:00]} Rf8 {[%emt 0:04:33]} 22. Nf5 {[%emt 0:19:34]} gxf5 {[%emt 0:06:20]} 23. Qxf5+ {[%emt 0:00:11]} Kh8 {[%emt 0:00:17]} 24. Rg3 {[%emt 0:04:33] normal} 1-0

[Event "GER-ch Youth U10 2019"]
[Site "Willingen"]
[Date "2019.06.14"]
[Round "10.5"]
[White "Xue, Luka"]
[Black "Klaska, Philipp Leon"]
[Result "1-0"]
[ECO "D05"]
[WhiteElo "1429"]
[BlackElo "1444"]
[Annotator "NA"]
[PlyCount "53"]
[EventDate "2019.06.07"]
[EventType "swiss"]
[EventRounds "11"]
[EventCountry "GER"]
[SourceTitle "playchess.com"]
[Source "ChessBase"]
[SourceQuality "1"]
[TimeControl "40/4500+30:900+30"]

1. d4 {[%emt 0:00:00]} d5 {[%emt 0:00:00]} 2. Nf3 {[%emt 0:00:00]} e6 {[%emt 0:00:00]} 3. e3 {[%emt 0:00:00]} Nf6 {[%emt 0:00:00]} 4. Bd3 {[%emt 0:00:14]} Be7 {[%emt 0:00:00]} 5. b3 {[%emt 0:00:42]} O-O {[%emt 0:00:17]} 6. O-O {[%emt 0:00:48]} Nbd7 {[%emt 0:00:26]} 7. Bb2 {[%emt 0:00:48]} b6 {[%emt 0:01:37]} 8. Ne5 {[%emt 0:01:30]} Bb7 {[%emt 0:01:59]} 9. f4 {[%emt 0:01:03]} c5 {[%emt 0:01:42]} 10. Rf3 {[%emt 0:04:43]} c4 {[%emt 0:10:36]} 11. Bf1 {[%emt 0:03:06]} cxb3 {[%emt 0:03:01]} 12. axb3 {[%emt 0:01:36]} Qc7 {[%emt 0:02:48]} 13. Rh3 {[%emt 0:04:50]} Rfc8 {[%emt 0:02:15]} 14. Bd3 {[%emt 0:01:37]} Nf8 {[%emt 0:09:58]} 15. f5 {[%emt 0:11:18]} Bd6 {[%emt 0:06:30]} 16. Qe1 {[%emt 0:05:01]} a5 {[%emt 0:11:16]} 17. Qh4 {[%emt 0:02:09]} Ba6 {[%emt 0:04:41]} 18. c4 {[%emt 0:08:25]} exf5 {[%emt 0:04:47]} 19. Bxf5 {[%emt 0:01:13]} Re8 {[%emt 0:01:52]} 20. Nd2 {[%emt 0:04:58]} Ng6 {[%emt 0:04:19]} 21. Bxg6 {[%emt 0:02:59]} fxg6 {[%emt 0:00:40]} 22. Rc1 {[%emt 0:03:39]} Bb4 {[%emt 0:04:28]} 23. cxd5 {[%emt 0:01:57]} Qb7 {[%emt 0:02:54]} 24. Ne4 {[%emt 0:05:23]} g5 {[%emt 0:02:13]} 25. Nxg5 {[%emt 0:01:09]} h6 {[%emt 0:03:26]} 26. Ngf7 {[%emt 0:05:22]} Nxd5 {[%emt 0:01:27]} 27. Rc6 {[%emt 0:04:47] normal} 1-0

[Event "GER-ch Youth U10 2019"]
[Site "Willingen"]
[Date "2019.06.14"]
[Round "10.6"]
[White "Haubold, Sebastian Marcel"]
[Black "Fietz, Nils"]
[Result "1-0"]
[ECO "C42"]
[WhiteElo "1506"]
[BlackElo "1677"]
[Annotator "NA"]
[PlyCount "115"]
[EventDate "2019.06.07"]
[EventType "swiss"]
[EventRounds "11"]
[EventCountry "GER"]
[SourceTitle "playchess.com"]
[Source "ChessBase"]
[SourceQuality "1"]
[TimeControl "40/4500+30:900+30"]

1. e4 {[%emt 0:00:00]} e5 {[%emt 0:00:00]} 2. Nf3 {[%emt 0:00:00]} Nf6 {[%emt 0:00:00]} 3. Nxe5 {[%emt 0:00:20]} d6 {[%emt 0:00:17]} 4. Nf3 {[%emt 0:00:10]} Nxe4 {[%emt 0:00:13]} 5. d4 {[%emt 0:00:09]} d5 {[%emt 0:00:19]} 6. Bd3 {[%emt 0:00:22]} Bf5 {[%emt 0:01:14]} 7. O-O {[%emt 0:01:18]} Bd6 {[%emt 0:00:21]} 8. Re1 {[%emt 0:01:22]} O-O {[%emt 0:00:31]} 9. c4 {[%emt 0:01:20]} c6 {[%emt 0:00:50]} 10. Qb3 {[%emt 0:03:53]} Qb6 {[%emt 0:01:33]} 11. Qxb6 {[%emt 0:01:17]} axb6 {[%emt 0:00:15]} 12. Nh4 {[%emt 0:02:04]} Bd7 {[%emt 0:01:56]} 13. Bxe4 {[%emt 0:01:45]} dxe4 {[%emt 0:00:56]} 14. Rxe4 {[%emt 0:01:00]} Na6 15. Bd2 {[%emt 0:00:25]} Nb4 {[%emt 0:01:41]} 16. Bxb4 {[%emt 0:03:39]} Bxb4 {[%emt 0:00:13]} 17. a3 {[%emt 0:01:49]} Rfe8 {[%emt 0:00:46]} 18. Re3 {[%emt 0:01:16]} Rxe3 {[%emt 0:01:22]} 19. fxe3 {[%emt 0:00:11]} Be6 {[%emt 0:00:19]} 20. b3 {[%emt 0:01:22]} Bg4 {[%emt 0:02:52]} 21. Nf3 {[%emt 0:02:32]} Bf5 {[%emt 0:00:44]} 22. a4 {[%emt 0:01:45]} Bc2 {[%emt 0:00:25]} 23. Nbd2 {[%emt 0:00:09]} Re8 {[%emt 0:02:24]} 24. Kf2 {[%emt 0:01:49]} g5 {[%emt 0:07:21]} 25. g4 {[%emt 0:03:07]} Kg7 {[%emt 0:01:16]} 26. Ke2 {[%emt 0:07:22]} h6 {[%emt 0:00:59]} 27. Rc1 {[%emt 0:02:24]} Bh7 {[%emt 0:00:48]} 28. Rf1 {[%emt 0:03:24]} Bc3 {[%emt 0:01:01]} 29. Nb1 {[%emt 0:09:28]} Bb4 {[%emt 0:00:42]} 30. Ne5 {[%emt 0:00:58]} Bg6 {[%emt 0:01:53]} 31. Nxg6 {[%emt 0:00:10]} Kxg6 {[%emt 0:00:10]} 32. Nd2 {[%emt 0:01:40]} Bd6 {[%emt 0:04:02]} 33. h3 {[%emt 0:01:17]} Bf4 {[%emt 0:01:09]} 34. Rf3 {[%emt 0:00:07]} Bd6 {[%emt 0:05:06]} 35. Kd3 {[%emt 0:02:16]} Re6 {[%emt 0:01:54]} 36. Ne4 {[%emt 0:03:03]} Be7 {[%emt 0:00:17]} 37. Ng3 {[%emt 0:00:23]} f6 {[%emt 0:02:24]} 38. e4 {[%emt 0:01:45]} Bd6 39. Nf5 {[%emt 0:01:11]} Bf4 {[%emt 0:01:16]} 40. h4 Re8 {[%emt 0:01:24]} 41. h5+ {[%emt 0:18:07]} Kh7 {[%emt 0:15:30]} 42. Rf2 {[%emt 0:01:07]} Rd8 {[%emt 0:01:04]} 43. b4 {[%emt 0:00:57]} Ra8 {[%emt 0:00:21]} 44. Ra2 {[%emt 0:00:40]} Bc7 {[%emt 0:00:17]} 45. d5 {[%emt 0:02:13]} Rd8 {[%emt 0:00:16]} 46. Nd4 {[%emt 0:00:28]} Be5 {[%emt 0:00:30]} 47. Ne6 {[%emt 0:00:47]} Re8 {[%emt 0:00:52]} 48. c5 {[%emt 0:01:52]} bxc5 {[%emt 0:01:16]} 49. bxc5 {[%emt 0:00:10]} Kg8 {[%emt 0:01:10]} 50. Nd4 {[%emt 0:02:29]} Rd8 {[%emt 0:01:10]} 51. Kc4 {[%emt 0:01:58]} Kf7 {[%emt 0:00:35]} 52. Rb2 {[%emt 0:00:28]} Rd7 {[%emt 0:00:11]} 53. Rb6 {[%emt 0:00:29]} Bxd4 {[%emt 0:02:38]} 54. Kxd4 {[%emt 0:02:10]} Ke7 {[%emt 0:00:20]} 55. Kc4 {[%emt 0:01:13]} cxd5+ {[%emt 0:00:15]} 56. exd5 {[%emt 0:00:05]} Kf7 {[%emt 0:00:35]} 57. c6 {[%emt 0:01:06]} bxc6 {[%emt 0:00:41]} 58. dxc6 {[%emt 0:00:20] normal} 1-0

[Event "GER-ch Youth U10 2019"]
[Site "Willingen"]
[Date "2019.06.14"]
[Round "10.7"]
[White "Arora, Abhiraaj"]
[Black "Dorendorf, Mika"]
[Result "1-0"]
[ECO "D41"]
[WhiteElo "1454"]
[BlackElo "1398"]
[Annotator "NA"]
[PlyCount "79"]
[EventDate "2019.06.07"]
[EventType "swiss"]
[EventRounds "11"]
[EventCountry "GER"]
[SourceTitle "playchess.com"]
[Source "ChessBase"]
[SourceQuality "1"]
[TimeControl "40/4500+30:900+30"]

1. d4 {[%emt 0:00:00]} Nf6 {[%emt 0:00:37]} 2. Nf3 {[%emt 0:00:00]} e6 {[%emt 0:00:37]} 3. c4 {[%emt 0:00:00]} d5 {[%emt 0:01:12]} 4. Nc3 {[%emt 0:00:00]} c5 {[%emt 0:00:43]} 5. cxd5 {[%emt 0:03:33]} Nxd5 {[%emt 0:02:22]} 6. e4 {[%emt 0:00:27]} Nxc3 {[%emt 0:00:15]} 7. bxc3 {[%emt 0:00:07]} Nc6 {[%emt 0:02:03]} 8. Be3 {[%emt 0:00:41]} cxd4 {[%emt 0:00:18]} 9. cxd4 {[%emt 0:00:09]} a5 {[%emt 0:01:35]} 10. a3 {[%emt 0:01:22]} Bd7 {[%emt 0:03:30]} 11. Be2 {[%emt 0:02:22]} Ne7 {[%emt 0:02:06]} 12. Ne5 {[%emt 0:02:12]} Nc6 {[%emt 0:03:40]} 13. Nxd7 {[%emt 0:01:30]} Qxd7 {[%emt 0:00:25]} 14. Bb5 {[%emt 0:00:26]} Rd8 {[%emt 0:01:21]} 15. d5 {[%emt 0:05:57]} exd5 {[%emt 0:04:56]} 16. Bb6 {[%emt 0:01:42]} Rc8 {[%emt 0:01:36]} 17. exd5 {[%emt 0:00:25]} Qf5 {[%emt 0:11:45]} 18. Qe2+ {[%emt 0:00:46]} Be7 {[%emt 0:00:24]} 19. dxc6 {[%emt 0:03:09]} bxc6 {[%emt 0:00:22]} 20. Bd3 {[%emt 0:00:28]} Qf6 {[%emt 0:00:28]} 21. O-O {[%emt 0:00:47]} O-O {[%emt 0:00:31]} 22. Bxa5 {[%emt 0:00:31]} Ra8 {[%emt 0:00:12]} 23. Qd2 {[%emt 0:02:49]} Qd6 {[%emt 0:04:43]} 24. a4 {[%emt 0:05:52]} Rxa5 {[%emt 0:00:21]} 25. Bxh7+ {[%emt 0:01:53]} Kxh7 {[%emt 0:00:36]} 26. Qxa5 {[%emt 0:00:22]} Rd8 {[%emt 0:00:21]} 27. Qh5+ {[%emt 0:00:36]} Kg8 {[%emt 0:00:04]} 28. Rfd1 {[%emt 0:04:29]} Qf6 {[%emt 0:00:57]} 29. Rxd8+ {[%emt 0:00:53]} Bxd8 {[%emt 0:00:08]} 30. Rf1 {[%emt 0:00:57]} Bb6 {[%emt 0:03:59]} 31. a5 {[%emt 0:00:56]} Ba7 {[%emt 0:01:14]} 32. a6 {[%emt 0:01:15]} Qd4 {[%emt 0:00:35]} 33. Qe2 {[%emt 0:02:29]} Qb6 {[%emt 0:04:05]} 34. Qe8+ {[%emt 0:01:54]} Kh7 {[%emt 0:00:12]} 35. Qc8 {[%emt 0:00:34]} Qc5 {[%emt 0:01:44]} 36. Qb7 {[%emt 0:00:47]} Kg8 {[%emt 0:00:43]} 37. h3 {[%emt 0:00:57] normal} Kh7 {[%emt 0:00:50]} 38. Qxf7 {[%emt 0:00:28]} Qb6 {[%emt 0:00:31] normal} 39. Re1 {[%emt 0:01:28] normal} Qc5 {[%emt 0:01:34] normal} 40. g4 {[%emt 0:02:33] normal} 1-0

[Event "GER-ch Youth U10 2019"]
[Site "Willingen"]
[Date "2019.06.14"]
[Round "10.8"]
[White "Aniol, Nico"]
[Black "Huber, Benedikt Thomas"]
[Result "1/2-1/2"]
[ECO "C47"]
[WhiteElo "1406"]
[BlackElo "1441"]
[Annotator "NA"]
[PlyCount "105"]
[EventDate "2019.06.07"]
[EventType "swiss"]
[EventRounds "11"]
[EventCountry "GER"]
[SourceTitle "playchess.com"]
[Source "ChessBase"]
[SourceQuality "1"]
[TimeControl "40/4500+30:900+30"]

1. e4 {[%emt 0:00:00]} e5 {[%emt 0:00:00]} 2. Nc3 {[%emt 0:00:00]} Nc6 {[%emt 0:00:00]} 3. Bc4 {[%emt 0:00:13]} Nf6 {[%emt 0:00:24]} 4. Nf3 {[%emt 0:00:14]} Nxe4 {[%emt 0:00:33]} 5. Bxf7+ {[%emt 0:00:07]} Kxf7 {[%emt 0:00:14]} 6. Nxe4 {[%emt 0:00:07]} d5 {[%emt 0:00:41]} 7. Ng3 {[%emt 0:01:40]} e4 {[%emt 0:03:35]} 8. Ng1 {[%emt 0:00:42]} Be6 {[%emt 0:02:42]} 9. f3 {[%emt 0:01:54]} Qh4 {[%emt 0:02:14]} 10. fxe4 {[%emt 0:02:22]} dxe4 {[%emt 0:01:41]} 11. Qe2 {[%emt 0:01:41]} Bd6 {[%emt 0:01:05]} 12. Qf2+ {[%emt 0:00:38]} Qf4 {[%emt 0:01:45]} 13. Qxf4+ {[%emt 0:01:09]} Bxf4 {[%emt 0:00:07]} 14. Nxe4 {[%emt 0:00:10]} Bd5 {[%emt 0:00:41]} 15. d3 {[%emt 0:00:05]} Bxe4 {[%emt 0:01:04]} 16. dxe4 {[%emt 0:00:09]} Bxc1 {[%emt 0:03:14]} 17. Rxc1 {[%emt 0:00:07]} Rae8 {[%emt 0:00:36]} 18. Ne2 {[%emt 0:00:19]} Rxe4 {[%emt 0:00:34]} 19. O-O+ {[%emt 0:00:06]} Ke7 {[%emt 0:03:57]} 20. Nc3 {[%emt 0:00:09]} Re5 {[%emt 0:02:50]} 21. Rce1 {[%emt 0:02:04]} Rxe1 {[%emt 0:01:47]} 22. Rxe1+ {[%emt 0:00:09]} Kd8 {[%emt 0:00:04]} 23. Rd1+ {[%emt 0:01:01]} Kc8 {[%emt 0:00:48]} 24. Rf1 {[%emt 0:00:07]} Nd4 {[%emt 0:01:40]} 25. Rf2 {[%emt 0:00:22]} Re8 {[%emt 0:02:41]} 26. Rd2 {[%emt 0:00:58]} Rd8 {[%emt 0:01:34]} 27. Kf2 {[%emt 0:00:58]} Rf8+ {[%emt 0:01:02]} 28. Ke1 {[%emt 0:00:43]} Nc6 {[%emt 0:01:54]} 29. a3 {[%emt 0:00:28]} Ne5 {[%emt 0:01:07]} 30. h3 {[%emt 0:00:34]} Nc4 {[%emt 0:01:53]} 31. Rd4 {[%emt 0:00:09]} Ne3 {[%emt 0:01:24]} 32. Rd2 {[%emt 0:00:25]} Re8 {[%emt 0:01:01]} 33. Kf2 {[%emt 0:00:27]} Nc4 {[%emt 0:01:33]} 34. Rd4 {[%emt 0:00:13]} Nd6 {[%emt 0:04:08]} 35. g4 {[%emt 0:03:24]} Rf8+ 36. Kg2 {[%emt 0:00:55]} g5 {[%emt 0:02:06]} 37. Ne4 {[%emt 0:02:59]} Nxe4 {[%emt 0:03:55]} 38. Rxe4 {[%emt 0:00:10]} Rf6 {[%emt 0:01:57]} 39. Rd4 {[%emt 0:00:26]} Rc6 {[%emt 0:00:54]} 40. c3 {[%emt 0:00:10]} Rb6 {[%emt 0:00:37]} 41. Rb4 {[%emt 0:15:32]} Rxb4 {[%emt 0:19:09]} 42. axb4 {[%emt 0:00:11]} Kd7 {[%emt 0:00:29]} 43. Kf3 {[%emt 0:00:10]} Ke6 {[%emt 0:00:18]} 44. Ke4 {[%emt 0:00:07]} c6 {[%emt 0:00:36]} 45. c4 {[%emt 0:00:11]} b6 {[%emt 0:01:10]} 46. Kd4 {[%emt 0:01:03]} Kd6 {[%emt 0:00:53]} 47. c5+ {[%emt 0:00:10]} Ke6 {[%emt 0:01:25]} 48. Ke4 {[%emt 0:01:11]} h6 {[%emt 0:01:14]} 49. Kd4 {[%emt 0:00:09]} b5 {[%emt 0:01:24]} 50. Ke4 {[%emt 0:00:09]} Kf6 {[%emt 0:01:24]} 51. Kd4 {[%emt 0:00:07]} a6 52. b3 {[%emt 0:00:06]} Ke6 {[%emt 0:00:15]} 53. Ke4 {[%emt 0:00:06] normal} 1/2-1/2